[Event "*** SCC Grand Prix: Titled Tuesday Blitz"]
[Site "Chess.com"]
[Date "2020.07.14"]
[Round "1"]
[White "onnoelgersma"]
[Black "eljanov"]
[Result "0-1"]
[WhiteElo "2423"]
[BlackElo "2856"]
[TimeControl "180+1"]
[EndTime "10:07:05 PDT"]
[Termination "eljanov won on time"]

1. e4 {[%clk 0:03:00.9]} 1... c6 {[%clk 0:02:57.7]} 2. Nf3 {[%clk 0:02:59.4]}
2... d5 {[%clk 0:02:57.8]} 3. Nc3 {[%clk 0:03:00.1]} 3... Bg4 {[%clk 0:02:55.6]}
4. h3 {[%clk 0:02:57]} 4... Bxf3 {[%clk 0:02:55.7]} 5. Qxf3 {[%clk 0:02:57.9]}
5... e6 {[%clk 0:02:55.8]} 6. Be2 {[%clk 0:02:56.1]} 6... Nf6 {[%clk 0:02:54.9]}
7. O-O {[%clk 0:02:55.2]} 7... Bc5 {[%clk 0:02:54.1]} 8. d3 {[%clk 0:02:27.5]}
8... Nbd7 {[%clk 0:02:52.6]} 9. Qg3 {[%clk 0:02:27.4]} 9... O-O {[%clk
0:02:51.1]} 10. Bh6 {[%clk 0:02:04.7]} 10... Ne8 {[%clk 0:02:51.1]} 11. Bf4
{[%clk 0:02:04.8]} 11... Bd4 {[%clk 0:02:34.9]} 12. Be3 {[%clk 0:01:43.6]} 12...
Bxe3 {[%clk 0:02:03.3]} 13. fxe3 {[%clk 0:01:35.4]} 13... Qb8 {[%clk 0:01:55.8]}
14. Qh4 {[%clk 0:01:26.3]} 14... Nef6 {[%clk 0:01:48.3]} 15. Bf3 {[%clk
0:01:13.1]} 15... a5 {[%clk 0:01:33.1]} 16. Rae1 {[%clk 0:01:11.1]} 16... b5
{[%clk 0:01:27.9]} 17. exd5 {[%clk 0:01:05]} 17... cxd5 {[%clk 0:01:20.4]} 18.
e4 {[%clk 0:01:05.2]} 18... b4 {[%clk 0:00:57]} 19. Ne2 {[%clk 0:00:47.9]} 19...
dxe4 {[%clk 0:00:43.7]} 20. Bxe4 {[%clk 0:00:44.9]} 20... Qb6+ {[%clk
0:00:39.2]} 21. Kh1 {[%clk 0:00:41.4]} 21... Rac8 {[%clk 0:00:39.8]} 22. Rc1
{[%clk 0:00:19.7]} 22... Qe3 {[%clk 0:00:35.2]} 23. Qf2 {[%clk 0:00:11.1]} 23...
Qxf2 {[%clk 0:00:30.9]} 24. Rxf2 {[%clk 0:00:12]} 24... Nxe4 {[%clk 0:00:28.1]}
25. dxe4 {[%clk 0:00:12.9]} 25... Ne5 {[%clk 0:00:28.1]} 26. Rff1 {[%clk
0:00:09]} 26... Nc4 {[%clk 0:00:20.3]} 27. c3 {[%clk 0:00:06.3]} 27... Nxb2
{[%clk 0:00:19.7]} 28. cxb4 {[%clk 0:00:05.2]} 28... axb4 {[%clk 0:00:20.6]} 29.
Rb1 {[%clk 0:00:04.3]} 29... Nd3 {[%clk 0:00:20.8]} 30. Rb3 {[%clk 0:00:02.6]}
30... Rfd8 {[%clk 0:00:19.4]} 31. Nf4 {[%clk 0:00:02.6]} 31... Nxf4 {[%clk
0:00:18.9]} 32. Rxf4 {[%clk 0:00:03.5]} 32... Rd4 {[%clk 0:00:18.9]} 33. Kh2
{[%clk 0:00:02.5]} 33... e5 {[%clk 0:00:18.4]} 0-1

[Event "*** SCC Grand Prix: Titled Tuesday Blitz"]
[Site "Chess.com"]
[Date "2020.07.14"]
[Round "1"]
[White "Zkid"]
[Black "Angel_Hranitel_37"]
[Result "1-0"]
[WhiteElo "2770"]
[BlackElo "2399"]
[TimeControl "180+1"]
[EndTime "10:07:11 PDT"]
[Termination "Zkid won on time"]

1. e4 {[%clk 0:02:59.8]} 1... c5 {[%clk 0:03:00]} 2. Nf3 {[%clk 0:02:58]} 2...
e6 {[%clk 0:02:57]} 3. d4 {[%clk 0:02:54.9]} 3... cxd4 {[%clk 0:02:57.9]} 4.
Nxd4 {[%clk 0:02:55.4]} 4... Nf6 {[%clk 0:02:55.1]} 5. Bd3 {[%clk 0:02:51.8]}
5... Nc6 {[%clk 0:02:54.1]} 6. Nxc6 {[%clk 0:02:50.1]} 6... bxc6 {[%clk
0:02:55]} 7. O-O {[%clk 0:02:48.6]} 7... e5 {[%clk 0:02:39.5]} 8. Bg5 {[%clk
0:02:34.3]} 8... h6 {[%clk 0:02:30.9]} 9. Bh4 {[%clk 0:02:32.5]} 9... Bc5 {[%clk
0:02:26.7]} 10. Kh1 {[%clk 0:02:23.2]} 10... d6 {[%clk 0:02:22]} 11. Nd2 {[%clk
0:02:05.7]} 11... O-O {[%clk 0:02:13]} 12. a4 {[%clk 0:01:46.4]} 12... a5 {[%clk
0:01:57.3]} 13. c3 {[%clk 0:01:31.1]} 13... Be6 {[%clk 0:01:21]} 14. Rb1 {[%clk
0:01:13.6]} 14... Rb8 {[%clk 0:01:19.4]} 15. Qc2 {[%clk 0:01:08.4]} 15... g5
{[%clk 0:00:20.7]} 16. Bg3 {[%clk 0:01:08.2]} 16... h5 {[%clk 0:00:21]} 17. h4
{[%clk 0:00:55.8]} 17... g4 {[%clk 0:00:16.8]} 18. Bc4 {[%clk 0:00:53.4]} 18...
d5 {[%clk 0:00:08.9]} 19. exd5 {[%clk 0:00:53.1]} 19... cxd5 {[%clk 0:00:09.8]}
20. Bb5 {[%clk 0:00:49.8]} 20... Bd6 {[%clk 0:00:09.3]} 21. Rfe1 {[%clk
0:00:47.7]} 21... e4 {[%clk 0:00:08.9]} 22. Nf1 {[%clk 0:00:45]} 22... Bxg3
{[%clk 0:00:06.6]} 23. Nxg3 {[%clk 0:00:44.7]} 23... Nd7 {[%clk 0:00:06.4]} 24.
Bxd7 {[%clk 0:00:41.1]} 24... Qxd7 {[%clk 0:00:07.3]} 25. Nxh5 {[%clk
0:00:37.6]} 25... f5 {[%clk 0:00:03.7]} 26. Qd2 {[%clk 0:00:32.4]} 26... Qe7
{[%clk 0:00:01.7]} 27. g3 {[%clk 0:00:31]} 27... Bf7 {[%clk 0:00:01.7]} 28. Nf4
{[%clk 0:00:29.7]} 28... Kg7 {[%clk 0:00:02.2]} 29. Red1 {[%clk 0:00:28]} 29...
Rbd8 {[%clk 0:00:02.1]} 30. Qd4+ {[%clk 0:00:27.6]} 30... Qf6 {[%clk 0:00:02.2]}
31. Qe3 {[%clk 0:00:22.3]} 31... Rd7 {[%clk 0:00:02.1]} 32. Rd4 {[%clk
0:00:21.2]} 32... Rfd8 {[%clk 0:00:02.4]} 33. b4 {[%clk 0:00:21.6]} 33... axb4
{[%clk 0:00:02.3]} 34. cxb4 {[%clk 0:00:21.5]} 34... Qa6 {[%clk 0:00:02.5]} 35.
b5 {[%clk 0:00:21.3]} 35... Qb6 {[%clk 0:00:02.5]} 36. Rbd1 {[%clk 0:00:20.7]}
36... Ra8 {[%clk 0:00:02.2]} 37. Qc3 {[%clk 0:00:19.7]} 37... Raa7 {[%clk
0:00:01.7]} 38. Rxd5+ {[%clk 0:00:19.5]} 1-0

[Event "*** SCC Grand Prix: Titled Tuesday Blitz"]
[Site "Chess.com"]
[Date "2020.07.14"]
[Round "1"]
[White "Lector118"]
[Black "maxsergej"]
[Result "1-0"]
[WhiteElo "2483"]
[BlackElo "2092"]
[TimeControl "180+1"]
[EndTime "10:07:13 PDT"]
[Termination "Lector118 won by resignation"]

1. d4 {[%clk 0:03:00.2]} 1... Nf6 {[%clk 0:02:59.3]} 2. Bf4 {[%clk 0:02:58.6]}
2... d5 {[%clk 0:02:57.7]} 3. e3 {[%clk 0:02:58.2]} 3... g6 {[%clk 0:02:57.8]}
4. c4 {[%clk 0:02:57.5]} 4... Bg7 {[%clk 0:02:57.5]} 5. Nc3 {[%clk 0:02:58]}
5... O-O {[%clk 0:02:57]} 6. Nf3 {[%clk 0:02:58.1]} 6... c5 {[%clk 0:02:56.5]}
7. Rc1 {[%clk 0:02:56.8]} 7... cxd4 {[%clk 0:02:54.2]} 8. exd4 {[%clk
0:02:57.7]} 8... dxc4 {[%clk 0:02:54]} 9. Bxc4 {[%clk 0:02:58]} 9... a6 {[%clk
0:02:45.6]} 10. h3 {[%clk 0:02:54.9]} 10... b5 {[%clk 0:02:43.5]} 11. Bb3 {[%clk
0:02:53.1]} 11... Bb7 {[%clk 0:02:43.7]} 12. O-O {[%clk 0:02:52.1]} 12... Nc6
{[%clk 0:02:37.2]} 13. Re1 {[%clk 0:02:35.2]} 13... Na5 {[%clk 0:02:29.8]} 14.
Be5 {[%clk 0:02:32.7]} 14... Nxb3 {[%clk 0:02:27.5]} 15. axb3 {[%clk 0:02:33]}
15... Rc8 {[%clk 0:02:20.5]} 16. Qe2 {[%clk 0:02:18.3]} 16... Qd7 {[%clk
0:02:04.6]} 17. Na2 {[%clk 0:02:04.1]} 17... a5 {[%clk 0:01:57]} 18. Nc3 {[%clk
0:02:02.6]} 18... b4 {[%clk 0:01:48.5]} 19. Na4 {[%clk 0:02:02.5]} 19... Bxf3
{[%clk 0:01:34.5]} 20. Qxf3 {[%clk 0:02:02.2]} 20... Qd5 {[%clk 0:01:34.2]} 21.
Qe3 {[%clk 0:01:54.7]} 21... Rxc1 {[%clk 0:01:26]} 22. Rxc1 {[%clk 0:01:53.9]}
22... Rd8 {[%clk 0:01:17.6]} 23. Rc5 {[%clk 0:01:52.3]} 23... Qe6 {[%clk
0:01:11.9]} 24. Rxa5 {[%clk 0:01:38.4]} 24... Nd5 {[%clk 0:01:11.6]} 25. Qg3
{[%clk 0:01:21.5]} 25... f6 {[%clk 0:01:08.9]} 26. Nc5 {[%clk 0:01:18.5]} 26...
Qf5 {[%clk 0:01:00.5]} 27. Nb7 {[%clk 0:00:44.4]} 27... Rd7 {[%clk 0:00:50.6]}
28. Nc5 {[%clk 0:00:38.7]} 28... Rd8 {[%clk 0:00:44.4]} 29. Nb7 {[%clk
0:00:38.8]} 29... Rd7 {[%clk 0:00:44.3]} 30. Ra8+ {[%clk 0:00:38.9]} 30... Kf7
{[%clk 0:00:44]} 31. Nd8+ {[%clk 0:00:36.9]} 31... Ke8 {[%clk 0:00:33.2]} 32.
Nc6+ {[%clk 0:00:25.1]} 32... Kf7 {[%clk 0:00:32.3]} 33. Nd8+ {[%clk 0:00:25.6]}
33... Ke8 {[%clk 0:00:32]} 34. Ne6+ {[%clk 0:00:15.3]} 34... Kf7 {[%clk
0:00:31.9]} 35. Nxg7 {[%clk 0:00:15.6]} 35... Kxg7 {[%clk 0:00:32.1]} 36. Bb8
{[%clk 0:00:16.3]} 36... Nb6 {[%clk 0:00:29.1]} 37. Ra6 {[%clk 0:00:13.6]} 37...
Qb5 {[%clk 0:00:23.5]} 38. Ra1 {[%clk 0:00:11.8]} 38... Nd5 {[%clk 0:00:23.2]}
39. Bf4 {[%clk 0:00:11.5]} 39... Qd3 {[%clk 0:00:21.3]} 40. Qxd3 {[%clk
0:00:11]} 1-0

[Event "*** SCC Grand Prix: Titled Tuesday Blitz"]
[Site "Chess.com"]
[Date "2020.07.14"]
[Round "1"]
[White "Escanor89"]
[Black "AlanZhang"]
[Result "0-1"]
[WhiteElo "2519"]
[BlackElo "2220"]
[TimeControl "180+1"]
[EndTime "10:07:16 PDT"]
[Termination "AlanZhang won by checkmate"]

1. c4 {[%clk 0:03:00.9]} 1... e6 {[%clk 0:02:59.9]} 2. Nc3 {[%clk 0:03:00.5]}
2... d5 {[%clk 0:03:00.1]} 3. d4 {[%clk 0:03:00.4]} 3... Nf6 {[%clk 0:02:59.9]}
4. Bg5 {[%clk 0:02:58.9]} 4... Be7 {[%clk 0:02:59.3]} 5. cxd5 {[%clk 0:02:58.1]}
5... exd5 {[%clk 0:02:59.2]} 6. Qc2 {[%clk 0:02:57.9]} 6... c6 {[%clk
0:02:59.1]} 7. e3 {[%clk 0:02:58]} 7... O-O {[%clk 0:02:59.4]} 8. Bd3 {[%clk
0:02:58.1]} 8... Nbd7 {[%clk 0:02:59.3]} 9. Nge2 {[%clk 0:02:57.4]} 9... Re8
{[%clk 0:02:58]} 10. h3 {[%clk 0:02:56.2]} 10... Ne4 {[%clk 0:02:40.1]} 11. Bxe7
{[%clk 0:02:48.9]} 11... Qxe7 {[%clk 0:02:39.4]} 12. Bxe4 {[%clk 0:02:30.5]}
12... dxe4 {[%clk 0:02:35.5]} 13. O-O-O {[%clk 0:02:27.7]} 13... f5 {[%clk
0:02:28.6]} 14. g4 {[%clk 0:02:27.3]} 14... fxg4 {[%clk 0:01:55.4]} 15. hxg4
{[%clk 0:02:25.9]} 15... Nf6 {[%clk 0:01:53.4]} 16. g5 {[%clk 0:02:19.3]} 16...
Nd5 {[%clk 0:01:50.9]} 17. Ng3 {[%clk 0:02:05.5]} 17... Nxc3 {[%clk 0:01:36.8]}
18. Qxc3 {[%clk 0:02:01.4]} 18... Qxg5 {[%clk 0:01:31.9]} 19. d5 {[%clk
0:01:46.3]} 19... Bg4 {[%clk 0:01:01.5]} 20. Rd4 {[%clk 0:01:27.1]} 20... cxd5
{[%clk 0:01:00.5]} 21. Kb1 {[%clk 0:01:26.9]} 21... Rac8 {[%clk 0:00:54.6]} 22.
Qb3 {[%clk 0:01:26.7]} 22... Red8 {[%clk 0:00:34.3]} 23. Qxb7 {[%clk 0:01:17.5]}
23... Qf6 {[%clk 0:00:33.8]} 24. Rxd5 {[%clk 0:00:39.6]} 24... Qxf2 {[%clk
0:00:32.3]} 25. Rxd8+ {[%clk 0:00:38]} 25... Rxd8 {[%clk 0:00:31.7]} 26. Qb3+
{[%clk 0:00:36.8]} 26... Kh8 {[%clk 0:00:19.2]} 27. Nxe4 {[%clk 0:00:19.9]}
27... Bf5 {[%clk 0:00:11.2]} 28. Ka1 {[%clk 0:00:15.5]} 28... Bxe4 {[%clk
0:00:10.9]} 29. Rc1 {[%clk 0:00:15.4]} 29... Qd2 {[%clk 0:00:09.4]} 30. Qc4
{[%clk 0:00:13.2]} 30... Bd5 {[%clk 0:00:07.9]} 31. Qc7 {[%clk 0:00:11.9]} 31...
Rf8 {[%clk 0:00:07.4]} 32. a3 {[%clk 0:00:09]} 32... Qxe3 {[%clk 0:00:06.9]} 33.
Qd6 {[%clk 0:00:07.4]} 33... Qf3 {[%clk 0:00:03.7]} 34. Rd1 {[%clk 0:00:04]}
34... Qxd1# {[%clk 0:00:03.3]} 0-1

[Event "*** SCC Grand Prix: Titled Tuesday Blitz"]
[Site "Chess.com"]
[Date "2020.07.14"]
[Round "1"]
[White "sertalzin"]
[Black "Love_craft"]
[Result "0-1"]
[WhiteElo "1954"]
[BlackElo "2461"]
[TimeControl "180+1"]
[EndTime "10:07:16 PDT"]
[Termination "Love_craft won on time"]

1. d4 {[%clk 0:02:45.9]} 1... Nf6 {[%clk 0:02:59.7]} 2. c4 {[%clk 0:02:42.6]}
2... g6 {[%clk 0:02:59.6]} 3. Nc3 {[%clk 0:02:41.6]} 3... Bg7 {[%clk 0:03:00.1]}
4. e4 {[%clk 0:02:41.1]} 4... d6 {[%clk 0:03:00.6]} 5. f4 {[%clk 0:02:39.3]}
5... O-O {[%clk 0:03:00]} 6. Nf3 {[%clk 0:02:39.7]} 6... Nbd7 {[%clk 0:02:57.3]}
7. e5 {[%clk 0:02:32.5]} 7... Ne8 {[%clk 0:02:55]} 8. Be3 {[%clk 0:02:30]} 8...
e6 {[%clk 0:02:42.5]} 9. c5 {[%clk 0:02:27.1]} 9... b6 {[%clk 0:02:13.8]} 10.
cxd6 {[%clk 0:02:22.6]} 10... cxd6 {[%clk 0:02:14.7]} 11. Be2 {[%clk 0:02:21.4]}
11... Bb7 {[%clk 0:02:14.4]} 12. O-O {[%clk 0:02:19.4]} 12... Rc8 {[%clk
0:02:05.1]} 13. Rc1 {[%clk 0:02:17.5]} 13... Qe7 {[%clk 0:02:02]} 14. Qd2 {[%clk
0:02:12.5]} 14... Nc7 {[%clk 0:01:59.8]} 15. Ng5 {[%clk 0:01:43.3]} 15... Nd5
{[%clk 0:01:48.5]} 16. Nxd5 {[%clk 0:01:34.6]} 16... Bxd5 {[%clk 0:01:49.4]} 17.
b3 {[%clk 0:01:27.7]} 17... Rfd8 {[%clk 0:01:43.3]} 18. Rxc8 {[%clk 0:01:21.5]}
18... Rxc8 {[%clk 0:01:44.2]} 19. Rc1 {[%clk 0:01:21.7]} 19... Rxc1+ {[%clk
0:01:25.3]} 20. Qxc1 {[%clk 0:01:20.4]} 20... dxe5 {[%clk 0:01:23.8]} 21. dxe5
{[%clk 0:01:17.9]} 21... h6 {[%clk 0:01:22.3]} 22. Nf3 {[%clk 0:01:14.8]} 22...
Nc5 {[%clk 0:01:19.2]} 23. Bxc5 {[%clk 0:01:08.5]} 23... Qxc5+ {[%clk
0:01:15.2]} 24. Qxc5 {[%clk 0:01:07.2]} 24... bxc5 {[%clk 0:01:16.1]} 25. Nd2
{[%clk 0:01:04.3]} 25... f6 {[%clk 0:01:12.4]} 26. exf6 {[%clk 0:00:56.8]} 26...
Bxf6 {[%clk 0:01:13.3]} 27. Nc4 {[%clk 0:00:45.5]} 27... Bd4+ {[%clk 0:01:12.7]}
28. Kf1 {[%clk 0:00:44.9]} 28... Kg7 {[%clk 0:01:07.3]} 29. Bd3 {[%clk
0:00:39.9]} 29... Kf6 {[%clk 0:01:05.9]} 30. g3 {[%clk 0:00:40.1]} 30... g5
{[%clk 0:01:02.2]} 31. fxg5+ {[%clk 0:00:10.7]} 31... Kxg5 {[%clk 0:01:03.1]}
32. h3 {[%clk 0:00:08.9]} 32... Kf6 {[%clk 0:00:52.3]} 33. Nd6 {[%clk
0:00:07.4]} 33... Be5 {[%clk 0:00:45.3]} 34. Ne4+ {[%clk 0:00:05.7]} 34... Bxe4
{[%clk 0:00:44.4]} 35. Bxe4 {[%clk 0:00:05.1]} 35... Bxg3 {[%clk 0:00:45.3]} 36.
Kg2 {[%clk 0:00:03.8]} 36... Bf4 {[%clk 0:00:42.4]} 37. Kf3 {[%clk 0:00:04.1]}
37... Ke5 {[%clk 0:00:43]} 38. a4 {[%clk 0:00:02.8]} 38... Bd2 {[%clk
0:00:40.8]} 39. h4 {[%clk 0:00:02.3]} 39... Kd4 {[%clk 0:00:38.2]} 0-1

[Event "*** SCC Grand Prix: Titled Tuesday Blitz"]
[Site "Chess.com"]
[Date "2020.07.14"]
[Round "1"]
[White "Colchonero64"]
[Black "eCztery"]
[Result "1/2-1/2"]
[WhiteElo "2934"]
[BlackElo "2446"]
[TimeControl "180+1"]
[EndTime "10:07:18 PDT"]
[Termination "Game drawn by agreement"]

1. e4 {[%clk 0:03:00.9]} 1... c5 {[%clk 0:02:58.9]} 2. Nf3 {[%clk 0:03:00.2]}
2... Nc6 {[%clk 0:02:57.3]} 3. Bb5 {[%clk 0:02:58.5]} 3... g6 {[%clk 0:02:57.4]}
4. O-O {[%clk 0:02:58]} 4... Bg7 {[%clk 0:02:57.1]} 5. Nc3 {[%clk 0:02:57.8]}
5... Nd4 {[%clk 0:02:57.3]} 6. Bc4 {[%clk 0:02:56.3]} 6... d6 {[%clk 0:02:56]}
7. Nxd4 {[%clk 0:02:50.3]} 7... cxd4 {[%clk 0:02:56.1]} 8. Ne2 {[%clk
0:02:49.2]} 8... Nf6 {[%clk 0:02:48.1]} 9. d3 {[%clk 0:02:48.9]} 9... e5 {[%clk
0:02:45.1]} 10. c3 {[%clk 0:02:47.6]} 10... dxc3 {[%clk 0:02:44.8]} 11. Nxc3
{[%clk 0:02:47.7]} 11... O-O {[%clk 0:02:45.1]} 12. Bg5 {[%clk 0:02:45.8]} 12...
Be6 {[%clk 0:02:45.8]} 13. Qb3 {[%clk 0:02:43.4]} 13... Qd7 {[%clk 0:02:39.2]}
14. Rac1 {[%clk 0:02:39.9]} 14... h6 {[%clk 0:02:36.2]} 15. Bxf6 {[%clk
0:02:39.8]} 15... Bxf6 {[%clk 0:02:37.1]} 16. Nd5 {[%clk 0:02:33.4]} 16... Bxd5
{[%clk 0:02:37.1]} 17. Bxd5 {[%clk 0:02:32.9]} 17... Bg5 {[%clk 0:02:27.4]} 18.
Rc3 {[%clk 0:02:26.7]} 18... Rab8 {[%clk 0:02:15.5]} 19. h4 {[%clk 0:02:09.3]}
19... Bxh4 {[%clk 0:02:11.7]} 20. Rfc1 {[%clk 0:02:09.2]} 20... Bd8 {[%clk
0:02:00.1]} 21. d4 {[%clk 0:02:03.4]} 21... exd4 {[%clk 0:01:55]} 22. Rg3 {[%clk
0:02:03.2]} 22... Kg7 {[%clk 0:01:48.1]} 23. a4 {[%clk 0:01:45.5]} 23... Bg5
{[%clk 0:01:39.8]} 24. Rc4 {[%clk 0:01:42.1]} 24... b5 {[%clk 0:01:35.7]} 25.
Rxd4 {[%clk 0:01:38.8]} 25... bxa4 {[%clk 0:01:33.2]} 26. Qa2 {[%clk 0:01:31.4]}
26... Bf6 {[%clk 0:01:25.8]} 27. Qxa4 {[%clk 0:01:31.4]} 27... Qxa4 {[%clk
0:01:22.8]} 28. Rxa4 {[%clk 0:01:32.3]} 28... Rxb2 {[%clk 0:01:23]} 29. Rf3
{[%clk 0:01:32.5]} 29... Rbb8 {[%clk 0:00:36.1]} 30. Rxa7 {[%clk 0:01:31.3]}
30... Rbe8 {[%clk 0:00:34.2]} 31. Rd7 {[%clk 0:01:24.9]} 31... Rd8 {[%clk
0:00:34.4]} 32. Ra7 {[%clk 0:01:22.7]} 32... Rde8 {[%clk 0:00:30.8]} 33. g3
{[%clk 0:01:17.3]} 33... Re7 {[%clk 0:00:30.3]} 34. Ra6 {[%clk 0:01:17.3]} 34...
Be5 {[%clk 0:00:30]} 35. Rb3 {[%clk 0:01:14.3]} 35... Rc8 {[%clk 0:00:26.3]} 36.
Ra2 {[%clk 0:01:05]} 36... Rc1+ {[%clk 0:00:25.3]} 37. Kg2 {[%clk 0:01:04.5]}
37... Rec7 {[%clk 0:00:26.2]} 38. Rf3 {[%clk 0:01:01.4]} 38... Bf6 {[%clk
0:00:23.5]} 39. Rb3 {[%clk 0:00:55.8]} 39... Re1 {[%clk 0:00:21.1]} 40. Ra6
{[%clk 0:00:51.9]} 40... Rd7 {[%clk 0:00:20.5]} 41. Ra8 {[%clk 0:00:51.2]} 41...
Re2 {[%clk 0:00:20]} 42. Kf1 {[%clk 0:00:44.5]} 42... Rd2 {[%clk 0:00:18.8]} 43.
Rf3 {[%clk 0:00:37.8]} 43... Bd4 {[%clk 0:00:17.4]} 44. Ra2 {[%clk 0:00:35.3]}
44... Rxa2 {[%clk 0:00:16.4]} 45. Bxa2 {[%clk 0:00:35.3]} 45... Be5 {[%clk
0:00:17.3]} 46. Bd5 {[%clk 0:00:34.6]} 46... Rc7 {[%clk 0:00:17.4]} 47. Kg2
{[%clk 0:00:34.5]} 47... Re7 {[%clk 0:00:16.2]} 48. Rb3 {[%clk 0:00:34]} 48...
Rc7 {[%clk 0:00:16.2]} 1/2-1/2

[Event "*** SCC Grand Prix: Titled Tuesday Blitz"]
[Site "Chess.com"]
[Date "2020.07.14"]
[Round "1"]
[White "Matibar"]
[Black "Alopekos"]
[Result "1-0"]
[WhiteElo "2677"]
[BlackElo "2350"]
[TimeControl "180+1"]
[EndTime "10:07:18 PDT"]
[Termination "Matibar won on time"]

1. e4 {[%clk 0:02:52.1]} 1... e5 {[%clk 0:02:59.5]} 2. Nf3 {[%clk 0:02:51.6]}
2... Nc6 {[%clk 0:03:00.1]} 3. Bb5 {[%clk 0:02:48.6]} 3... a6 {[%clk 0:03:00]}
4. Ba4 {[%clk 0:02:47.4]} 4... Nf6 {[%clk 0:02:59.8]} 5. d3 {[%clk 0:02:47.4]}
5... d6 {[%clk 0:02:56]} 6. c3 {[%clk 0:02:42]} 6... Be7 {[%clk 0:02:56.2]} 7.
h3 {[%clk 0:02:36.6]} 7... O-O {[%clk 0:02:54.6]} 8. O-O {[%clk 0:02:36.3]} 8...
Re8 {[%clk 0:02:48.2]} 9. Nbd2 {[%clk 0:02:28.1]} 9... Bf8 {[%clk 0:02:39.7]}
10. Re1 {[%clk 0:02:24.8]} 10... b5 {[%clk 0:02:35.9]} 11. Bc2 {[%clk
0:02:21.4]} 11... g6 {[%clk 0:02:31.5]} 12. a4 {[%clk 0:02:03.1]} 12... Bb7
{[%clk 0:02:22.9]} 13. b4 {[%clk 0:02:02.9]} 13... Bg7 {[%clk 0:02:17.6]} 14.
Nb3 {[%clk 0:02:02.4]} 14... h6 {[%clk 0:01:57.3]} 15. Be3 {[%clk 0:01:40.2]}
15... Kh7 {[%clk 0:01:51.3]} 16. Qb1 {[%clk 0:01:26]} 16... Nh5 {[%clk
0:01:22.4]} 17. axb5 {[%clk 0:01:11.1]} 17... axb5 {[%clk 0:01:21.6]} 18. Rxa8
{[%clk 0:01:12]} 18... Bxa8 {[%clk 0:01:22.2]} 19. Qa2 {[%clk 0:01:05]} 19...
Bb7 {[%clk 0:01:09.3]} 20. Ra1 {[%clk 0:01:03.8]} 20... Qf6 {[%clk 0:00:57.5]}
21. Qb1 {[%clk 0:00:38.6]} 21... Bc8 {[%clk 0:00:30.9]} 22. Nbd2 {[%clk
0:00:32.2]} 22... Nd8 {[%clk 0:00:26.7]} 23. Ra7 {[%clk 0:00:30.2]} 23... Ne6
{[%clk 0:00:23.9]} 24. Bb3 {[%clk 0:00:29.7]} 24... Re7 {[%clk 0:00:14.6]} 25.
d4 {[%clk 0:00:27.4]} 25... Nef4 {[%clk 0:00:13.7]} 26. Qf1 {[%clk 0:00:26.5]}
26... g5 {[%clk 0:00:09.9]} 27. g4 {[%clk 0:00:23.6]} 27... Bh8 {[%clk 0:00:06]}
28. Ra8 {[%clk 0:00:18.2]} 28... Re8 {[%clk 0:00:03.7]} 29. Rxc8 {[%clk
0:00:17.3]} 29... Rxc8 {[%clk 0:00:04.6]} 30. gxh5 {[%clk 0:00:18]} 30... Nxh5
{[%clk 0:00:05.2]} 31. Qg2 {[%clk 0:00:18]} 31... Nf4 {[%clk 0:00:05.1]} 32. Qg4
{[%clk 0:00:18.3]} 32... Ra8 {[%clk 0:00:04.2]} 33. Qd7 {[%clk 0:00:15.4]} 33...
Ra1+ {[%clk 0:00:02.3]} 34. Kh2 {[%clk 0:00:15.6]} 34... Ne2 {[%clk 0:00:02.2]}
35. Bxf7 {[%clk 0:00:13.4]} 35... Qg7 {[%clk 0:00:01.6]} 36. Qf5+ {[%clk
0:00:12.8]} 1-0

[Event "*** SCC Grand Prix: Titled Tuesday Blitz"]
[Site "Chess.com"]
[Date "2020.07.14"]
[Round "1"]
[White "GGfrances"]
[Black "GMKrikor"]
[Result "0-1"]
[WhiteElo "2359"]
[BlackElo "2690"]
[TimeControl "180+1"]
[EndTime "10:07:19 PDT"]
[Termination "GMKrikor won by resignation"]

1. e4 {[%clk 0:02:55.9]} 1... g6 {[%clk 0:02:59.8]} 2. d4 {[%clk 0:02:44.2]}
2... Bg7 {[%clk 0:02:59.4]} 3. Nc3 {[%clk 0:02:43.3]} 3... d6 {[%clk 0:02:58.7]}
4. Be3 {[%clk 0:02:39.3]} 4... a6 {[%clk 0:02:57.3]} 5. Qd2 {[%clk 0:02:36.4]}
5... b5 {[%clk 0:02:55.6]} 6. f3 {[%clk 0:02:34]} 6... Nd7 {[%clk 0:02:54.5]} 7.
h4 {[%clk 0:02:31.9]} 7... h5 {[%clk 0:02:53.1]} 8. O-O-O {[%clk 0:02:29.1]}
8... Bb7 {[%clk 0:02:53.1]} 9. Kb1 {[%clk 0:02:12.2]} 9... Rc8 {[%clk
0:02:52.3]} 10. Nge2 {[%clk 0:02:08]} 10... c5 {[%clk 0:02:51.9]} 11. d5 {[%clk
0:01:51.6]} 11... Ngf6 {[%clk 0:02:48.5]} 12. Nf4 {[%clk 0:01:27.2]} 12... Ne5
{[%clk 0:02:40.7]} 13. Be2 {[%clk 0:01:23.2]} 13... Qa5 {[%clk 0:02:40.2]} 14.
a3 {[%clk 0:01:14.4]} 14... Nfd7 {[%clk 0:02:32.6]} 15. Rhe1 {[%clk 0:01:07.8]}
15... Nb6 {[%clk 0:02:25.8]} 16. Na2 {[%clk 0:01:03.8]} 16... Qxd2 {[%clk
0:02:20.7]} 17. Bxd2 {[%clk 0:01:02.6]} 17... Nbc4 {[%clk 0:02:08.2]} 18. Bc1
{[%clk 0:00:59.9]} 18... O-O {[%clk 0:01:59.8]} 19. g4 {[%clk 0:00:55.6]} 19...
hxg4 {[%clk 0:01:49.9]} 20. fxg4 {[%clk 0:00:56.5]} 20... Nb6 {[%clk 0:01:39.1]}
21. h5 {[%clk 0:00:53.9]} 21... g5 {[%clk 0:01:33.2]} 22. Ng2 {[%clk 0:00:54]}
22... Bf6 {[%clk 0:01:27.8]} 23. Ne3 {[%clk 0:00:51.4]} 23... Rc7 {[%clk
0:01:26.4]} 24. Nf5 {[%clk 0:00:49.2]} 24... Bc8 {[%clk 0:01:25.9]} 25. b3
{[%clk 0:00:35.6]} 25... Bxf5 {[%clk 0:01:22.2]} 26. gxf5 {[%clk 0:00:36.4]}
26... Kh7 {[%clk 0:01:21.5]} 27. Rg1 {[%clk 0:00:35.7]} 27... Rg8 {[%clk
0:01:21.8]} 28. Bb2 {[%clk 0:00:34.9]} 28... Ned7 {[%clk 0:01:13]} 29. Bc1
{[%clk 0:00:26.5]} 29... Ne5 {[%clk 0:01:12.5]} 30. Bb2 {[%clk 0:00:20.5]} 30...
Nbd7 {[%clk 0:01:08.3]} 31. Nc1 {[%clk 0:00:20.6]} 31... Kh6 {[%clk 0:00:59.2]}
32. Rg2 {[%clk 0:00:20.5]} 32... c4 {[%clk 0:00:52.2]} 33. Bd4 {[%clk
0:00:17.5]} 33... cxb3 {[%clk 0:00:46.1]} 34. cxb3 {[%clk 0:00:18.4]} 34... Rgc8
{[%clk 0:00:45.9]} 35. Rdg1 {[%clk 0:00:18.3]} 35... Rc2 {[%clk 0:00:36.3]} 36.
Nd3 {[%clk 0:00:10.1]} 36... Nxd3 {[%clk 0:00:15.5]} 37. Bxd3 {[%clk 0:00:11]}
37... Rxg2 {[%clk 0:00:14.5]} 38. Rxg2 {[%clk 0:00:10.4]} 38... Bxd4 {[%clk
0:00:14.9]} 0-1